fUST/lending_fUST_20251026
["ID","MTS","AMOUNT","RATE_DAILY","PERIOD"]
[392395788,1761428906878,999.99,0.00015789,2]
[392395789,1761428909157,-7279.72675106,0.0001579,2]
[392395790,1761428909331,-10000.01,0.0001579,2]
[392395791,1761428909467,-10000.01,0.0001579,2]
[392395792,1761428909594,-10000.01,0.0001579,2]
[392395793,1761428909760,-10000.01,0.0001579,2]
[392395794,1761428916468,-655.22166642,0.00015632,2]
[392395795,1761428916500,-500.0,0.00015789,2]
[392395796,1761428916533,-500.0,0.00015789,2]
[392395797,1761428916566,-523.75529151,0.00015789,2]
[392395798,1761428916683,-5642.05608414,0.0001579,2]
[392395799,1761428916798,-10000.01,0.0001579,2]
[392395800,1761428917092,-10000.01,0.0001579,2]
[392395801,1761428917116,-10000.01,0.0001579,2]
[392395802,1761428917167,-10000.01,0.0001579,2]
[392395803,1761428920610,-10000.01,0.0001579,2]
[392395804,1761428920754,-10000.01,0.0001579,2]
[392395805,1761428920915,-10000.01,0.0001579,2]
[392395806,1761428921067,-10000.01,0.0001579,2]
[392395807,1761428921277,-10000.01,0.0001579,2]
[392395808,1761428926567,-10000.01,0.0001579,2]
[392395809,1761428926765,-10000.01,0.0001579,2]
[392395810,1761428927005,-10000.01,0.0001579,2]
[392395811,1761428927139,-10000.01,0.0001579,2]
[392395812,1761428927361,-10000.01,0.0001579,2]
[392395813,1761428932836,-535.82113758,0.00015632,2]
[392395814,1761428932885,-8928.36772484,0.0001579,2]
[392395815,1761428933079,-10000.01,0.0001579,2]
[392395816,1761428933188,-10000.01,0.0001579,2]
[392395817,1761428933323,-10000.01,0.0001579,2]
[392395818,1761428938738,-10000.01,0.0001579,2]
[392395819,1761428938853,-10000.01,0.0001579,2]
[392395820,1761428938997,-10000.01,0.0001579,2]
[392395821,1761428939129,-10000.01,0.0001579,2]
[392395822,1761428939279,-2715.86880319,0.0001579,2]
[392395823,1761428943023,500.0,0.00015789,2]
[392395824,1761428943124,500.0,0.00015789,2]
[392395825,1761428943189,500.0,0.00015789,2]
[392395826,1761428943244,500.0,0.00015789,2]
[392395827,1761428943300,500.0,0.00015789,2]
[392395828,1761428943356,500.0,0.00015789,2]
[392395829,1761428943410,500.0,0.00015789,2]
[392395830,1761428943486,550.0,0.00015789,2]
[392395831,1761428945200,518.27239362,0.0001579,2]
[392395832,1761428950831,-349.58459853,0.00015789,2]
[392395833,1761428950862,-441.58718578,0.00015789,2]
[392395834,1761428950892,-403.6716978,0.00015789,2]
[392395835,1761428950923,-3128.5954294,0.0001579,2]
[392395836,1761428951120,-1353.13217698,0.0001579,2]
[392395837,1761428952992,1194.84348211,0.00015631,2]
[392395838,1761428962161,2375.29277639,0.0001579,2]
[392395839,1761428968636,1000.0,0.0001579,2]
[392395840,1761428969061,-500.0,0.000158,2]
[392395841,1761428969100,-300.0,0.000158,2]
[392395842,1761428969133,-300.0,0.000158,2]
[392395843,1761428969212,500.0,0.00015789,2]
[392395844,1761428969252,174.90696896,0.00015789,2]
[392395845,1761428969330,500.0,0.00015789,2]
[392395846,1761428969372,500.0,0.00015789,2]
[392395847,1761428969443,500.0,0.00015789,2]
[392395848,1761428969490,500.0,0.00015789,2]
[392395849,1761428969533,500.0,0.00015789,2]
[392395850,1761428969581,500.0,0.00015789,2]
[392395851,1761428969624,500.0,0.00015789,2]
[392395852,1761428969676,500.0,0.00015789,2]
[392395853,1761428969729,500.0,0.00015789,2]
[392395854,1761428969774,500.0,0.00015789,2]
[392395855,1761428969821,225.85921044,0.00015789,2]
[392395856,1761428969867,500.0,0.00015789,2]
[392395857,1761428969911,500.0,0.00015789,2]
[392395858,1761428969962,500.0,0.00015789,2]
[392395859,1761428970005,399.2438206,0.00015789,2]
[392395860,1761428970038,100.7561794,0.00015789,2]
[392395861,1761428970090,500.0,0.00015789,2]
[392395862,1761428970134,500.0,0.00015789,2]
[392395863,1761428970177,500.0,0.00015789,2]
[392395864,1761428970216,500.0,0.00015789,2]
[392395865,1761428970251,1011.59415201,0.0001579,2]
[392395866,1761428970296,500.0,0.00015789,2]
[392395867,1761428970338,500.0,0.00015789,2]
[392395868,1761428970377,500.0,0.00015789,2]
[392395869,1761428970417,1533.16976175,0.0001579,2]
[392395870,1761428970456,500.0,0.00015789,2]
[392395871,1761428970506,500.0,0.00015789,2]
[392395872,1761428970550,500.0,0.00015789,2]
[392395873,1761428970589,500.0,0.00015789,2]
[392395874,1761428970637,500.0,0.00015789,2]
[392395875,1761428970683,500.0,0.00015789,2]
[392395877,1761428977408,300.0,0.000158,2]
[392395878,1761428978442,5000.0,0.000158,2]
[392395879,1761428981070,396.03656455,0.00015789,2]
[392395880,1761428981104,500.0,0.00015789,2]
[392395881,1761428981141,500.0,0.00015789,2]
[392395882,1761428981175,500.0,0.00015789,2]
[392395883,1761428981209,500.0,0.00015789,2]
[392395884,1761428981250,500.0,0.00015789,2]
[392395885,1761428981290,500.0,0.00015789,2]
[392395886,1761428981323,225.45165576,0.00015789,2]
[392395887,1761428981355,500.0,0.00015789,2]
[392395888,1761428981390,500.0,0.00015789,2]
[392395889,1761428981425,378.52177969,0.00015789,2]
[392395890,1761428981450,121.47822031,0.00015789,2]
[392395891,1761428981481,500.0,0.00015789,2]
[392395892,1761428981512,500.0,0.00015789,2]
[392395893,1761428981545,500.0,0.00015789,2]
[392395894,1761428981579,500.0,0.00015789,2]
[392395895,1761428981613,500.0,0.00015789,2]
[392395896,1761428981649,647.83933427,0.00015789,2]
[392395897,1761428981684,500.0,0.00015789,2]
[392395898,1761428981719,500.0,0.00015789,2]
[392395899,1761428981752,500.0,0.00015789,2]
[392395900,1761428981784,500.0,0.00015789,2]
[392395901,1761428981815,500.0,0.00015789,2]
[392395902,1761428981848,369.16423241,0.00015789,2]
[392395903,1761428981880,500.0,0.00015789,2]
[392395904,1761428981916,500.0,0.00015789,2]
[392395905,1761428981952,500.0,0.00015789,2]
[392395906,1761428981985,500.0,0.00015789,2]
[392395907,1761428982021,500.0,0.00015789,2]
[392395908,1761428982054,387.56664507,0.00015789,2]
[392395909,1761428982090,500.0,0.00015789,2]
[392395910,1761428982125,473.96156794,0.00015789,2]
[392395911,1761428982153,26.03843206,0.00015789,2]
[392395912,1761428982188,500.0,0.00015789,2]
[392395913,1761428982224,500.0,0.00015789,2]
[392395914,1761428982256,619.88140629,0.00015789,2]
[392395915,1761428982293,500.0,0.00015789,2]
[392395916,1761428982322,208.60321455,0.00015789,2]
[392395917,1761428982358,500.0,0.00015789,2]
[392395918,1761428982391,500.0,0.00015789,2]
[392395919,1761428982424,500.0,0.00015789,2]
[392395920,1761428982461,500.0,0.00015789,2]
[392395921,1761428982492,500.0,0.00015789,2]
[392395922,1761428982526,500.0,0.00015789,2]
[392395923,1761428982564,500.0,0.00015789,2]
[392395924,1761428982597,500.0,0.00015789,2]
[392395925,1761428982631,500.0,0.00015789,2]
[392395926,1761428982664,500.0,0.00015789,2]
[392395927,1761428982696,500.0,0.00015789,2]
[392395928,1761428982728,500.0,0.00015789,2]
[392395929,1761428982871,500.0,0.00015789,2]
[392395930,1761428982907,500.0,0.00015789,2]
[392395931,1761428986232,175.078749,0.00015022,2]
[392395932,1761428986474,175.078749,0.00015022,120]
[392395933,1761428987698,300.0,0.000158,2]
[392395934,1761428994948,170.4081981,0.00015789,2]
[392395935,1761428994975,317.81553155,0.00015789,2]
[392395936,1761428995012,500.0,0.00015789,2]
[392395937,1761428995059,499.99999999,0.00015789,2]
[392395938,1761428995095,500.0,0.00015789,2]
[392395939,1761428998862,-175.05,0.0001588,3]
[392395940,1761428998883,-32.76920545,0.0001588,3]
[392395941,1761428999248,300.0,0.000158,2]
[392395942,1761428999719,500.0,0.00015789,2]
[392395943,1761428999755,500.0,0.00015789,2]
[392395944,1761428999790,500.0,0.00015789,2]
[392395945,1761428999824,398.08343839,0.00015789,2]
[392395946,1761428999859,500.0,0.00015789,2]
[392395947,1761428999894,500.0,0.00015789,2]
[392395948,1761428999927,500.0,0.00015789,2]
[392395949,1761428999971,500.0,0.00015789,2]
[392395950,1761429000008,500.0,0.00015789,2]
[392395951,1761429000045,500.0,0.00015789,2]
[392395952,1761429000081,500.0,0.00015789,2]
[392395953,1761429000117,500.0,0.00015789,2]
[392395954,1761429000152,500.0,0.00015789,2]
[392395955,1761429000196,500.0,0.00015789,2]
[392395956,1761429000237,500.0,0.00015789,2]
[392395957,1761429000273,484.11103007,0.00015789,2]
[392395958,1761429000302,15.88896993,0.00015789,2]
[392395959,1761429000339,500.0,0.00015789,2]
[392395960,1761429000372,500.0,0.00015789,2]
[392395961,1761429000406,500.0,0.00015789,2]
[392395962,1761429000503,500.0,0.00015789,2]
[392395963,1761429002337,5000.0,0.0001588,2]
[392395964,1761429005701,500.0,0.00015789,2]
[392395965,1761429010624,300.0,0.000158,2]
[392395966,1761429015721,500.0,0.00015789,2]
[392395967,1761429015783,500.0,0.00015789,2]
[392395968,1761429015838,500.0,0.00015789,2]
[392395969,1761429015889,500.0,0.00015789,2]
[392395970,1761429015935,184.12103007,0.00015789,2]
[392395971,1761429015963,315.87896993,0.00015789,2]
[392395972,1761429016021,500.0,0.00015789,2]
[392395973,1761429016070,500.0,0.00015789,2]
[392395974,1761429016119,500.0,0.00015789,2]
[392395975,1761429016161,500.0,0.00015789,2]
[392395976,1761429016212,500.0,0.00015789,2]
[392395977,1761429016269,575.66935943,0.00015789,2]
[392395978,1761429016310,500.0,0.00015789,2]
[392395979,1761429016356,500.0,0.00015789,2]
[392395980,1761429016406,500.0,0.00015789,2]
[392395981,1761429016449,500.0,0.00015789,2]
[392395982,1761429016493,500.0,0.00015789,2]
[392395983,1761429016535,500.0,0.00015789,2]
[392395984,1761429016574,500.0,0.00015789,2]
[392395985,1761429016621,500.0,0.00015789,2]
[392395986,1761429016662,500.0,0.00015789,2]
[392395987,1761429016694,300.0,0.000156,2]
[392395988,1761429016733,500.0,0.00015789,2]
[392395989,1761429016779,500.0,0.00015789,2]
[392395990,1761429016821,500.0,0.00015789,2]
[392395991,1761429016867,308.46167064,0.00015789,2]
[392395992,1761429016896,191.53832936,0.00015789,2]
[392395993,1761429016942,500.0,0.00015789,2]
[392395994,1761429016982,500.0,0.00015789,2]
[392395995,1761429017032,363.26693211,0.0001514,2]
[392395996,1761429017076,500.0,0.00015789,2]
[392395997,1761429017114,500.0,0.00015789,2]
[392395998,1761429017160,500.0,0.00015789,2]
[392395999,1761429017208,500.0,0.00015789,2]
[392396000,1761429017255,500.0,0.00015789,2]
[392396001,1761429017303,500.0,0.00015789,2]
[392396002,1761429017343,500.0,0.00015789,2]
[392396003,1761429017608,300.0,0.0001588,2]
[392396004,1761429021461,300.0,0.000158,2]
[392396005,1761429025306,4345.20473853,0.0001588,2]
[392396006,1761429025334,654.79526147,0.0001588,2]
[392396007,1761429026960,300.0,0.000156,2]
[392396043,1761429032224,-492.38079455,0.0001588,3]
[392396046,1761429032233,-207.67877363,0.00015882,2]
[392396048,1761429032245,-92.32122637,0.00015882,2]
[392396050,1761429032254,-300.0,0.00015882,2]
[392396052,1761429032263,-300.0,0.00015882,2]
[392396054,1761429032272,-300.0,0.00015882,2]
[392396057,1761429032291,-1200.0,0.00015882,2]
[392396059,1761429032302,-300.0,0.00015882,2]
[392396061,1761429032311,-500.0,0.00015884,2]
[392396063,1761429032320,-500.0,0.00015884,2]
[392396065,1761429032330,-500.0,0.00015884,2]
[392396067,1761429032340,-2405.0,0.00015886,2]
[392396069,1761429032349,-500.0,0.00015886,2]
[392396071,1761429032359,-1197.0,0.00015886,2]
[392396073,1761429032368,-278.18774218,0.00015886,2]
[392396075,1761429032377,-433.0,0.00015886,2]
[392396077,1761429032387,-500.0,0.00015886,2]
[392396079,1761429032396,-500.0,0.00015887,2]
[392396081,1761429032406,-227.2505305,0.00015888,2]
[392396083,1761429032415,-500.0,0.00015889,2]
[392396086,1761429032424,-500.0,0.00015889,2]
[392396089,1761429032434,-500.0,0.00015889,2]
[392396093,1761429032443,-500.0,0.00015889,2]
[392396096,1761429032453,-500.0,0.00015889,2]
[392396099,1761429032462,-500.0,0.00015889,2]
[392396102,1761429032472,-500.0,0.00015889,2]
[392396105,1761429032481,-500.0,0.00015889,2]
[392396135,1761429032753,-500.0,0.00015889,2]
[392396138,1761429032763,-500.0,0.00015889,2]
[392396139,1761429032772,-500.0,0.00015889,2]
[392396141,1761429032781,-500.0,0.00015889,2]
[392396144,1761429032791,-404.77833872,0.00015889,2]
[392396146,1761429032800,-500.0,0.00015889,2]
[392396148,1761429032810,-500.0,0.00015889,2]
[392396149,1761429032819,-500.0,0.00015889,2]
[392396151,1761429032829,-500.0,0.00015889,2]
[392396154,1761429032838,-507.74421882,0.0001589,2]
[392396155,1761429032848,-610.9362703,0.0001589,2]
[392396158,1761429032858,-183.15564955,0.00015896,2]
[392396160,1761429032867,-4546.2197428,0.00015926,2]
[392396161,1761429032876,-500.0,0.00015937,2]
[392396163,1761429032886,-1788.47913352,0.00015937,2]
[392396164,1761429032896,-823.32270484,0.00015937,2]
[392396167,1761429032906,-477.0,0.00015937,2]
[392396168,1761429032915,-500.0,0.00015937,2]
[392396170,1761429032923,-151.0,0.00015937,2]
[392396172,1761429032932,-151.0,0.00015937,2]
[392396174,1761429032942,-151.0,0.00015937,2]
[392396176,1761429032951,-151.0,0.00015937,2]
[392396178,1761429032960,-500.0,0.00015937,2]
[392396180,1761429032969,-2405.0,0.00015941,2]
[392396182,1761429032978,-500.0,0.00015941,2]
[392396184,1761429032987,-1197.0,0.00015941,2]
[392396186,1761429032996,-433.0,0.00015941,2]
[392396188,1761429033006,-500.0,0.00015941,2]
[392396190,1761429033015,-500.0,0.00015944,2]
[392396192,1761429033028,-500.0,0.00015944,2]
[392396193,1761429033038,-500.0,0.00015944,2]
[392396194,1761429033046,-500.0,0.00015944,2]
[392396195,1761429033055,-500.0,0.00015944,2]
[392396196,1761429033065,-500.0,0.00015944,2]
[392396197,1761429033074,-500.0,0.00015944,2]
[392396198,1761429033083,-500.0,0.00015944,2]
[392396199,1761429033092,-213.96859442,0.0001598,2]
[392396200,1761429033101,-176.019,0.00015989,2]
[392396201,1761429033111,-236.88077724,0.00015989,2]
[392396202,1761429033120,-77433.76158028,0.0001599,2]
[392396203,1761429033129,-477.0,0.00015992,2]
[392396204,1761429033138,-500.0,0.00015992,2]
[392396205,1761429033146,-245.96039801,0.00015992,2]
[392396207,1761429033155,-151.0,0.00015992,2]
[392396209,1761429033164,-500.0,0.00015992,2]
[392396211,1761429033174,-2405.0,0.00015996,2]
[392396213,1761429033183,-500.0,0.00015996,2]
[392396215,1761429033193,-1197.0,0.00015996,2]
[392396217,1761429033202,-433.0,0.00015996,2]
[392396219,1761429033211,-500.0,0.00015996,2]
[392396221,1761429033220,-500.0,0.00015999,2]
[392396223,1761429033230,-500.0,0.00015999,2]
[392396225,1761429033239,-500.0,0.00015999,2]
[392396227,1761429033247,-500.0,0.00015999,2]
[392396229,1761429033260,-427.00632288,0.00015999,2]
[392396231,1761429033269,-559.87101223,0.00015999,2]
[392396233,1761429033279,-385.08809342,0.00015999,2]
[392396235,1761429033288,-500.0,0.00015999,2]
[392396237,1761429033298,-8060.53675938,0.00016,2]
[392396239,1761429033307,-500.0,0.00016027,2]
[392396241,1761429033316,-500.0,0.00016027,2]
[392396243,1761429033326,-213.53694206,0.00016027,2]
[392396245,1761429033335,-151.0,0.00016027,2]
[392396247,1761429033345,-500.0,0.00016027,2]
[392396249,1761429033354,-500.0,0.00016027,2]
[392396251,1761429033363,-500.0,0.00016027,2]
[392396253,1761429033373,-494.0,0.00016027,2]
[392396255,1761429033384,-207.6829672,0.00016027,2]
[392396257,1761429033393,-500.0,0.00016027,2]
[392396259,1761429033403,-500.0,0.00016027,2]
[392396261,1761429033412,-500.0,0.00016027,2]
[392396263,1761429033422,-500.0,0.00016027,2]
[392396265,1761429033432,-500.0,0.00016027,2]
[392396267,1761429033441,-151.0,0.00016027,2]
[392396269,1761429033450,-500.0,0.00016027,2]
[392396271,1761429033460,-151.0,0.00016027,2]
[392396273,1761429033469,-477.0,0.00016047,2]
[392396275,1761429033479,-500.0,0.00016047,2]
[392396277,1761429033488,-258.31870316,0.00016047,2]
[392396279,1761429033497,-500.0,0.00016047,2]
[392396281,1761429033506,-2405.0,0.0001605,2]
[392396283,1761429033516,-500.0,0.0001605,2]
[392396285,1761429033525,-1197.0,0.0001605,2]
[392396287,1761429033535,-433.0,0.0001605,2]
[392396289,1761429033544,-500.0,0.0001605,2]
[392396291,1761429033554,-500.0,0.00016053,2]
[392396292,1761429033563,-646.1645026,0.00016053,2]
[392396295,1761429033574,-500.0,0.00016053,2]
[392396296,1761429033583,-500.0,0.00016053,2]
[392396298,1761429033592,-500.0,0.00016053,2]
[392396300,1761429033602,-500.0,0.00016082,2]
[392396302,1761429033612,-500.0,0.00016082,2]
[392396304,1761429033620,-151.0,0.00016082,2]
[392396306,1761429033634,-500.0,0.00016082,2]
[392396308,1761429033643,-500.0,0.00016082,2]
[392396310,1761429033652,-500.0,0.00016082,2]
[392396312,1761429033662,-494.0,0.00016082,2]
[392396314,1761429033672,-500.0,0.00016082,2]
[392396316,1761429033682,-500.0,0.00016082,2]
[392396318,1761429033691,-500.0,0.00016082,2]
[392396319,1761429033701,-500.0,0.00016082,2]
[392396321,1761429033710,-500.0,0.00016082,2]
[392396322,1761429033719,-151.0,0.00016082,2]
[392396324,1761429033728,-500.0,0.00016082,2]
[392396325,1761429033738,-273.54651137,0.00016082,2]
[392396326,1761429033747,-168.0,0.00016094,2]
[392396328,1761429033756,-477.0,0.00016101,2]
[392396329,1761429033765,-612.83761363,0.00016101,2]
[392396331,1761429033774,-2405.0,0.00016105,2]
[392396332,1761429033783,-500.0,0.00016105,2]
[392396333,1761429033793,-1197.0,0.00016105,2]
[392396334,1761429033802,-433.0,0.00016105,2]
[392396335,1761429033811,-500.0,0.00016105,2]
[392396336,1761429033820,-196.0,0.00016106,2]
[392396337,1761429033829,-500.0,0.00016108,2]
[392396338,1761429033839,-367.24848066,0.00016108,2]
[392396339,1761429033848,-500.0,0.00016108,2]
[392396340,1761429033858,-500.0,0.00016108,2]
[392396341,1761429033867,-168.0,0.00016112,2]
[392396342,1761429033878,-183.15564954,0.00016117,2]
[392396343,1761429033887,-196.0,0.00016127,2]
[392396344,1761429033897,-160.0,0.00016131,2]
[392396345,1761429033907,-168.0,0.00016135,2]
[392396346,1761429033916,-500.0,0.00016137,2]
[392396347,1761429033926,-174.32531695,0.00016137,2]
[392396348,1761429033935,-151.0,0.00016137,2]
[392396349,1761429033945,-500.0,0.00016137,2]
[392396350,1761429033954,-500.0,0.00016137,2]
[392396351,1761429033964,-500.0,0.00016137,2]
[392396352,1761429033974,-494.0,0.00016137,2]
[392396353,1761429033984,-500.0,0.00016137,2]
[392396354,1761429033993,-500.0,0.00016137,2]
[392396355,1761429034002,-500.0,0.00016137,2]
[392396356,1761429034012,-484.46280069,0.00016137,2]
[392396357,1761429034023,-338.52738612,0.00016137,2]
[392396358,1761429034037,-286.13191335,0.00016137,2]
[392396359,1761429034047,-500.0,0.00016137,2]
[392396360,1761429034056,-162.13257,0.00016137,2]
[392396361,1761429034066,-196.0,0.00016148,2]
[392396362,1761429034075,-477.0,0.00016156,2]
[392396363,1761429034084,-500.0,0.00016158,2]
[392396364,1761429034094,-2405.0,0.0001616,2]
[392396365,1761429034103,-500.0,0.0001616,2]
[392396366,1761429034113,-1197.0,0.0001616,2]
[392396367,1761429034122,-433.0,0.0001616,2]
[392396368,1761429034133,-500.0,0.0001616,2]
[392396369,1761429034145,-303.77453925,0.00016163,2]
[392396370,1761429034155,-500.0,0.00016163,2]
[392396371,1761429034165,-500.0,0.00016163,2]
[392396372,1761429034174,-2420.0,0.00016163,2]
[392396373,1761429034183,-196.0,0.0001617,2]
[392396374,1761429034192,-196.0,0.00016191,2]
[392396375,1761429034201,-500.0,0.00016191,2]
[392396376,1761429034211,-279.83580863,0.00016191,2]
[392396377,1761429034221,-500.0,0.00016191,2]
[392396378,1761429034231,-371.94225671,0.00016191,2]
[392396379,1761429034240,-500.0,0.00016191,2]
[392396380,1761429034249,-494.0,0.00016191,2]
[392396381,1761429034258,-500.0,0.00016191,2]
[392396382,1761429034267,-500.0,0.00016191,2]
[392396383,1761429034277,-500.0,0.00016191,2]
[392396384,1761429034287,-586.92363098,0.00016191,2]
[392396385,1761429034296,-151.0,0.00016192,2]
[392396386,1761429034305,-151.0,0.00016192,2]
[392396387,1761429034314,-339.0,0.00016205,2]
[392396388,1761429034323,-500.0,0.00016211,2]
[392396389,1761429034333,-477.0,0.00016211,2]
[392396390,1761429034343,-196.0,0.00016212,2]
[392396391,1761429034352,-2405.0,0.00016215,2]
[392396392,1761429034362,-500.0,0.00016215,2]
[392396393,1761429034373,-1197.0,0.00016215,2]
[392396394,1761429034385,-433.0,0.00016215,2]
[392396395,1761429034394,-500.0,0.00016215,2]
[392396396,1761429034405,-500.0,0.00016218,2]
[392396397,1761429034414,-500.0,0.00016218,2]
[392396398,1761429034423,-196.0,0.00016233,2]
[392396399,1761429034433,-162.77053178,0.00016246,2]
[392396400,1761429034442,-500.0,0.00016246,2]
[392396401,1761429034451,-195.53526998,0.00016246,2]
[392396402,1761429034712,300.0,0.000158,2]
[392396403,1761429034909,5000.0,0.0001588,2]
[392396423,1761429038097,-500.0,0.00015925,2]
[392396424,1761429038107,-500.0,0.00015925,2]
[392396425,1761429038116,-500.0,0.00015925,2]
[392396426,1761429038125,-500.0,0.00015925,2]
[392396427,1761429038134,-500.0,0.00015925,2]
[392396428,1761429038143,-2.98575476,0.00015925,2]
[392396429,1761429038155,-418.59091708,0.00015925,2]
[392396430,1761429038165,-169.1444333,0.00015925,2]
[392396431,1761429038175,-500.0,0.00015925,2]
[392396432,1761429038184,-500.0,0.00015925,2]
[392396433,1761429038193,-500.0,0.00015925,2]
[392396434,1761429038202,-199.50719249,0.00015925,2]
[392396435,1761429038212,-500.0,0.00015925,2]
[392396436,1761429038221,-500.0,0.00015925,2]
[392396437,1761429038231,-500.0,0.00015925,2]
[392396438,1761429038240,-500.0,0.00015925,2]
[392396439,1761429038249,-291.25410176,0.00015925,2]
[392396440,1761429038261,-208.74589824,0.00015925,2]
[392396441,1761429038271,-500.0,0.00015925,2]
[392396442,1761429038280,-500.0,0.00015925,2]
[392396443,1761429038289,-500.0,0.00015925,2]
[392396444,1761429038298,-499.81580334,0.00015925,2]
[392396445,1761429038307,-133.570402,0.00015925,2]
[392396446,1761429038571,300.0,0.000156,2]
[392396555,1761429041007,-3e-08,0.00015925,2]
[392396706,1761429043355,-353.83491488,0.00015925,2]
[392396779,1761429044151,300.0,0.000158,2]
[392397014,1761429048222,-12.59468309,0.00015925,2]
[392397018,1761429048259,-500.0,0.00015925,2]
[392397023,1761429048296,-500.0,0.00015925,2]
[392397028,1761429048333,-500.0,0.00015925,2]
[392397033,1761429048369,-500.0,0.00015925,2]
[392397037,1761429048402,-500.0,0.00015925,2]
[392397042,1761429048436,-500.0,0.00015925,2]
[392397047,1761429048470,-500.0,0.00015925,2]
[392397098,1761429049021,300.0,0.000156,2]
[392397103,1761429049074,2674.82063382,0.0001588,2]
[392397107,1761429049100,2325.17936618,0.0001588,2]
[392397134,1761429050340,561.46164621,0.00015925,2]
[392397135,1761429050376,272.66706352,0.00015925,2]
[392397136,1761429054391,300.0,0.000158,2]
[392397137,1761429054522,163.28563437,0.00015921,2]
[392397138,1761429056841,5000.0,0.00015925,2]
[392397139,1761429059423,300.0,0.000156,2]
[392397140,1761429073228,5000.0,0.00015938,2]
[392397141,1761429081154,202.08465032,0.00015938,2]
[392397142,1761429085218,500.0,0.00015925,2]
[392397143,1761429085272,635.26391903,0.00015925,2]
[392397144,1761429085313,500.0,0.00015925,2]
[392397145,1761429085355,500.0,0.00015925,2]
[392397146,1761429085388,500.0,0.00015925,2]
[392397147,1761429085428,500.0,0.00015925,2]
[392397148,1761429085470,500.0,0.00015925,2]
[392397149,1761429093778,500.0,0.00015925,2]
[392397150,1761429093820,500.0,0.00015925,2]
[392397151,1761429093865,162.66143065,0.00015925,2]
[392397152,1761429093895,337.33856935,0.00015925,2]
[392397153,1761429093945,500.0,0.00015925,2]
[392397154,1761429093983,500.0,0.00015925,2]
[392397155,1761429094020,621.12986662,0.00015925,2]
[392397156,1761429094056,500.0,0.00015925,2]
[392397157,1761429094092,500.0,0.00015925,2]
[392397158,1761429094134,500.0,0.00015925,2]
[392397159,1761429094975,6541.54156403,0.0001569,2]
[392397160,1761429095007,10000.01,0.0001569,2]
[392397161,1761429095036,10000.01,0.0001569,2]
[392397162,1761429095062,10000.01,0.0001569,2]
[392397163,1761429095089,10000.01,0.0001569,2]
[392397164,1761429095118,10000.01,0.0001569,2]
[392397165,1761429095145,10000.01,0.0001569,2]
[392397166,1761429095172,10000.01,0.0001569,2]
[392397167,1761429095198,10000.01,0.0001569,2]
[392397168,1761429105987,-202.09465032,0.00015378,2]